bitfinex-derivatives/quotes_SOLF0:USTF0_20241025
["timestamp","ask_amount","ask_price","bid_price","bid_amount"]
[1729872219135,2.9034,172.27,172.23,5.72]
[1729872220231,41.95804516,172.33,172.23,5.72]
[1729872220428,2.9029,172.3,172.24,36.23804516]
[1729872220628,5.78,172.36,172.23,5.72]
[1729872221032,2.9031,172.29,172.23,8.6239]
[1729872221229,5.78,172.36,172.23,5.72]
[1729872221429,2.903,172.3,172.21,1.2436]
[1729872221627,36.23804516,172.33,172.21,7.0236]
[1729872221931,36.23804516,172.33,172.21,5.78]
[1729872222136,2.9042,172.25,172.21,5.78]
[1729872222429,5.78,172.3,172.21,5.78]
[1729872222634,42.01804516,172.3,172.21,5.78]
[1729872222837,42.01804516,172.3,172.17,5.78]
[1729872223043,36.23804516,172.27,172.17,5.78]
[1729872223239,36.23804516,172.24,172.14,5.78]
[1729872223740,36.23804516,172.24,172.13,8.3737]
[1729872223943,5.78,172.25,172.13,8.3737]
[1729872224130,2.9046,172.22,172.13,11.2797]
[1729872224329,5.78,172.25,172.13,11.2797]
[1729872224933,2.9054,172.18,172.13,5.4997]
[1729872225536,5.78,172.25,172.1,2.9065]
[1729872225537,2.9057,172.15,172.1,2.9065]
[1729872225740,36.23804516,172.27,172.05,37.48544516]
[1729872225741,36.23804516,172.19,172.05,37.48544516]
[1729872225934,36.23804516,172.19,172.06,5.78]
[1729872225935,5.78,172.18,172.06,5.78]
[1729872226142,6.9876,172.18,172.06,5.78]
[1729872227046,6.9876,172.18,172.07,2.9069]
[1729872227342,6.9876,172.18,172.06,5.78]
[1729872227542,2.9061,172.13,172.08,2.9068]
[1729872228139,2.9061,172.13,172.09,2.9067]
[1729872228560,2.9061,172.13,172.06,5.78]
[1729872229341,2.4553,172.21,172.08,36.23804516]
[1729872229652,5.78,172.2,172.08,36.23804516]
[1729872230644,5.78,172.2,172.11,2.9063]
[1729872230848,2.4553,172.21,172.11,2.9063]
[1729872231045,2.9049,172.2,172.14,2.9057]
[1729872231349,5.78,172.24,172.13,37.50144516]
[1729872231549,5.78,172.24,172.13,38.71094516]
[1729872231749,2.9047,172.21,172.16,2.9055]
[1729872232154,2.9046,172.22,172.16,2.9055]
[1729872232450,5.78,172.24,172.16,2.9055]
[1729872233245,2.9046,172.22,172.17,2.9053]
[1729872233446,5.78,172.25,172.14,1.1895]
[1729872234350,2.9046,172.22,172.17,2.9053]
[1729872234544,5.78,172.25,172.14,1.1895]
[1729872235056,5.78,172.25,172.16,2.9055]
[1729872235446,2.9048,172.21,172.16,2.9055]
[1729872235643,36.23804516,172.24,172.14,1.1895]
[1729872235848,36.23804516,172.24,172.13,1.2634]
[1729872236149,2.9053,172.18,172.14,2.9059]
[1729872236741,2.9051,172.19,172.15,2.9057]
[1729872239251,28.10558807,172.25,172.13,1.2634]
[1729872239252,5.78,172.25,172.13,1.2634]
[1729872239452,5.78,172.24,172.13,1.2634]
[1729872239955,22.32558807,172.2,172.08,28.10558807]
[1729872240155,5.78,172.19,172.07,1.2839]
[1729872240363,2.906,172.14,172.1,2.9065]
[1729872240653,8.1446,172.19,172.07,7.0639]
[1729872240847,8.1446,172.19,172.09,2.9066]
[1729872241348,8.1446,172.19,172.07,7.0639]
[1729872241554,2.9058,172.15,172.1,2.9065]
[1729872241858,8.1446,172.19,172.07,7.0639]
[1729872242955,2.9059,172.14,172.1,2.9065]
[1729872243156,8.1446,172.19,172.07,7.0639]
[1729872243660,22.32558807,172.17,172.03,8.2641]
[1729872243866,8.1446,172.19,172.03,8.2641]
[1729872243867,22.32558807,172.14,172.03,8.2641]
[1729872244053,5.78,172.13,172.03,8.2641]
[1729872244455,2.9073,172.06,171.98,1.2543]
[1729872244660,2.9073,172.06,171.98,7.0343]
[1729872244952,2.9073,172.06,172.01,2.9079]
[1729872245264,2.4347,172.1,171.98,7.0343]
[1729872245561,22.32558807,172.08,171.98,1.2543]
[1729872245751,2.4347,172.1,171.91,1.2543]
[1729872245752,22.32558807,172.05,171.91,1.2543]
[1729872245952,2.9085,171.99,171.91,1.2543]
[1729872246360,28.10558807,172.02,171.91,1.2543]
[1729872246562,2.9085,171.99,171.91,1.2543]
[1729872246763,28.10558807,172.02,171.91,1.2543]
[1729872246963,2.9081,172.01,171.91,1.2543]
[1729872247157,22.32558807,172.05,171.92,22.32558807]
[1729872247362,5.78,172.04,171.92,22.32558807]
[1729872248156,5.78,172.04,171.91,1.2543]
[1729872248157,22.32558807,172.02,171.91,1.2543]
[1729872248866,22.32558807,172.02,171.93,2.9094]
[1729872249561,22.32558807,172.02,171.91,1.2543]
[1729872249766,5.78,172.04,171.87,2.9104]
[1729872249767,22.32558807,171.97,171.87,2.9104]
[1729872250066,5.78,171.96,171.82,9.5817]
[1729872250270,7.0039,171.96,171.85,2.9108]
[1729872250458,7.0039,171.96,171.82,9.5817]
[1729872250760,7.0039,171.96,171.86,2.9105]
[1729872250963,22.32558807,171.94,171.82,9.5817]
[1729872251169,2.9101,171.89,171.82,9.5817]
[1729872251560,22.32558807,171.94,171.82,9.5817]
[1729872251762,2.91,171.9,171.82,9.5817]
[1729872251960,22.32558807,171.94,171.82,9.5817]
[1729872252159,22.32558807,171.94,171.86,2.9105]
[1729872253260,2.9099,171.91,171.86,2.9105]
[1729872253867,22.32558807,171.94,171.82,9.5817]
[1729872253868,22.32558807,171.94,171.82,3.8017]
[1729872254061,2.91,171.9,171.85,2.9107]
[1729872254266,22.32558807,171.94,171.85,2.9107]
[1729872254664,2.91,171.9,171.85,2.9107]
[1729872255663,2.9101,171.89,171.82,3.8017]
[1729872256372,2.9103,171.88,171.84,2.9109]
[1729872256671,5.78,171.91,171.84,2.9109]
[1729872256870,5.78,171.91,171.82,1.2765]
[1729872257072,5.78,171.91,171.77,5.78]
[1729872257264,8.2501,171.91,171.78,5.78]
[1729872257465,22.32558807,171.89,171.78,5.78]
[1729872257666,22.32558807,171.86,171.77,1.2273]
[1729872257863,5.78,171.85,171.77,1.2273]
[1729872258070,2.9112,171.83,171.78,2.9118]
[1729872258266,5.78,171.85,171.77,1.2273]
[1729872258663,8.6908,171.85,171.79,2.9117]
[1729872258862,5.78,171.85,171.77,1.2273]
[1729872259069,5.78,171.88,171.78,22.32558807]
[1729872259269,2.9101,171.89,171.85,2.9108]
[1729872259471,7.03,171.91,171.85,2.9108]
[1729872259670,7.03,171.91,171.79,5.78]
[1729872259869,2.9101,171.89,171.79,5.78]
[1729872260367,2.9101,171.89,171.84,2.9108]
[1729872260565,2.9101,171.89,171.79,5.78]
[1729872260765,2.9099,171.9,171.79,5.78]
[1729872260974,22.32558807,171.94,171.81,22.32558807]
[1729872261167,1.2685,171.97,171.84,22.32558807]
[1729872261168,2.9091,171.95,171.84,22.32558807]
[1729872261374,23.59408807,171.97,171.85,7.0748]
[1729872261571,23.59408807,171.97,171.85,8.2766]
[1729872261871,1.2685,171.97,171.86,1.2876]
[1729872262064,22.32558807,171.95,171.86,4.1981]
[1729872262268,22.32558807,171.95,171.86,2.9105]
[1729872262772,22.32558807,171.95,171.85,7.0748]
[1729872262979,2.9097,171.92,171.85,7.0748]
[1729872263168,23.59408807,171.97,171.89,2.91]
[1729872263474,2.909,171.96,171.86,22.32558807]
[1729872263671,5.78,171.99,171.92,2.9095]
[1729872263877,7.0258,172.0,171.86,22.32558807]
[1729872264072,2.5376,172.02,171.89,22.32558807]
[1729872264277,2.5376,172.02,171.87,5.78]
[1729872264278,5.78,172.04,171.92,22.32558807]
[1729872264572,2.9082,172.01,171.93,5.78]
[1729872265072,2.9081,172.01,171.93,5.78]
[1729872265374,5.78,172.05,171.93,5.78]
[1729872265676,2.9072,172.07,171.95,22.32558807]
[1729872265882,5.78,172.1,171.98,22.32558807]
[1729872266071,5.78,172.1,171.99,1.2405]
[1729872266275,5.78,172.1,172.0,36.28195846]
[1729872266473,38.87115846,172.14,172.0,36.28195846]
[1729872266474,38.87115846,172.14,172.06,2.9072]
[1729872266781,5.78,172.14,172.05,36.28195846]
[1729872267169,2.9055,172.16,172.05,36.28195846]
[1729872267376,36.28195846,172.22,172.08,36.28195846]
[1729872267571,36.28195846,172.22,172.14,2.9058]
[1729872267778,2.9046,172.22,172.11,36.28195846]
[1729872267983,5.78,172.23,172.13,36.28195846]
[1729872268181,36.28195846,172.31,172.16,36.28195846]
[1729872268379,2.9034,172.29,172.19,36.28195846]
[1729872268574,36.28195846,172.28,172.2,5.78]
[1729872268768,36.28195846,172.28,172.18,5.78]
[1729872268982,2.9041,172.25,172.18,5.78]
[1729872269177,36.28195846,172.26,172.18,5.78]
[1729872269377,2.9044,172.23,172.18,5.78]
[1729872269582,36.28195846,172.26,172.15,1.2399]
[1729872269776,5.78,172.27,172.13,5.78]
[1729872269777,36.28195846,172.23,172.13,5.78]
[1729872270477,36.28195846,172.2,172.09,1.1796]
[1729872270869,36.28195846,172.2,172.09,6.9596]
[1729872271074,36.28195846,172.17,172.09,6.9596]
[1729872271477,36.28195846,172.17,172.09,9.8663]
[1729872271690,2.9054,172.17,172.09,6.9596]
[1729872271884,36.28195846,172.2,172.09,6.9596]
[1729872272179,5.78,172.21,172.09,6.9596]
[1729872272374,2.905,172.2,172.09,6.9596]
[1729872272571,5.78,172.21,172.13,2.906]
[1729872272772,5.78,172.21,172.09,6.9596]
[1729872273589,36.28195846,172.17,172.09,1.1796]
[1729872273772,36.28195846,172.17,172.07,5.78]
[1729872274078,2.9058,172.15,172.07,5.78]
[1729872274274,2.9058,172.15,172.09,2.9067]
[1729872274478,36.28195846,172.17,172.07,5.78]
[1729872274675,36.28195846,172.14,172.05,2.4369]
[1729872274887,36.28195846,172.14,172.07,2.907]
[1729872275077,5.78,172.15,172.05,2.4369]
[1729872275278,5.78,172.15,172.05,38.71885846]
[1729872275487,36.28195846,172.17,172.08,2.9067]
[1729872276377,2.906,172.14,172.09,2.9066]
[1729872276576,36.28195846,172.17,172.05,2.4369]
[1729872276882,36.28195846,172.14,172.05,2.4369]
[1729872277585,36.28195846,172.14,172.05,5.3442]
[1729872277586,2.9063,172.12,172.05,5.3442]
[1729872277888,36.28195846,172.14,172.04,1.2449]
[1729872278083,36.28195846,172.11,172.04,1.2449]
[1729872278283,2.907,172.08,172.03,5.76]
[1729872278492,36.28195846,172.11,172.0,62.8]
[1729872278677,2.9074,172.06,172.01,5.76]
[1729872278874,2.9074,172.06,171.95,1.253]
[1729872278875,36.28195846,172.09,171.99,5.9]
[1729872279177,36.28195846,172.09,171.98,5.9]
[1729872279178,42.18195846,172.09,171.98,5.9]
[1729872279378,2.9078,172.03,171.98,8.8086]
[1729872280278,2.9078,172.03,171.98,5.9]
[1729872280483,2.9078,172.03,171.99,2.9084]
[1729872280686,5.9,172.09,171.98,5.9]
[1729872280687,42.18195846,172.09,171.98,5.9]
[1729872280988,42.18195846,172.09,172.02,2.9079]
[1729872281184,2.9073,172.06,172.02,2.9079]
[1729872281686,36.28195846,172.15,172.03,5.92]
[1729872282690,5.92,172.15,172.03,5.92]
[1729872282878,2.9064,172.12,172.04,1.2402]
[1729872283179,5.92,172.15,172.04,1.2402]
[1729872283387,2.906,172.13,172.04,1.2402]
[1729872283587,5.92,172.15,172.04,1.2402]
[1729872283884,2.9062,172.12,172.07,2.9069]
[1729872284387,5.92,172.15,172.04,1.2402]
[1729872285480,2.9067,172.09,172.04,4.1477]
[1729872285685,36.28195846,172.13,172.03,5.92]
[1729872286181,36.28195846,172.1,172.03,5.92]
[1729872286588,2.907,172.08,172.03,5.92]
[1729872286990,2.907,172.08,172.03,8.8277]
[1729872287691,2.9071,172.07,172.03,5.92]
[1729872288296,36.28195846,172.1,172.03,5.92]
[1729872288588,36.28195846,172.13,172.05,2.9074]
[1729872288996,2.9066,172.1,172.05,2.9074]
[1729872289890,36.28195846,172.13,172.05,2.9074]
[1729872290084,5.92,172.15,172.07,2.9069]
[1729872290289,5.92,172.15,172.03,5.92]
[1729872290494,2.9059,172.14,172.03,5.92]
[1729872290690,22.32012399,172.16,172.04,1.2609]
[1729872290892,22.32012399,172.13,172.01,5.92]
[1729872291090,22.32012399,172.1,172.0,1.2817]
[1729872291392,22.32012399,172.1,171.97,1.2609]
[1729872291393,22.32012399,172.07,171.99,5.92]
[1729872291594,22.32012399,172.01,171.86,3.7301]
[1729872291893,22.32012399,171.98,171.86,3.7301]
[1729872292992,2.9092,171.95,171.9,2.9098]
[1729872294391,28.24012399,171.98,171.93,2.9093]
[1729872294392,2.9087,171.98,171.93,2.9093]
[1729872294596,5.92,171.98,171.93,2.9093]
[1729872294792,5.92,171.98,171.87,42.26228129]
[1729872294999,2.909,171.96,171.92,2.9096]
[1729872295190,5.92,171.98,171.87,42.26228129]
[1729872295490,2.9092,171.95,171.9,2.9099]
[1729872295692,36.34228129,171.98,171.9,2.9099]
[1729872295897,36.34228129,171.98,171.87,5.92]
[1729872296197,2.9091,171.95,171.9,2.9098]
[1729872296398,5.92,171.99,171.87,42.26228129]
[1729872296692,5.92,172.0,171.87,42.26228129]
[1729872297593,36.34228129,172.01,171.87,42.26228129]
[1729872297898,5.92,172.03,171.9,36.34228129]
[1729872298402,36.34228129,172.01,171.87,42.26228129]
[1729872298698,36.34228129,172.01,171.87,5.92]
[1729872298992,2.9089,171.97,171.92,2.9094]
[1729872299399,2.9089,171.97,171.93,2.9094]
[1729872299697,1.2669,172.05,171.87,5.92]
[1729872299698,2.9095,171.93,171.87,5.92]
[1729872300091,42.26228129,171.98,171.87,5.92]
[1729872300290,2.9098,171.91,171.86,9.6501]
[1729872300591,42.26228129,171.98,171.86,9.6501]
[1729872300993,2.9095,171.93,171.86,9.6501]
[1729872301196,2.9095,171.93,171.89,2.91]
[1729872301495,36.34228129,172.01,171.86,9.6501]
[1729872301695,5.92,171.98,171.86,9.6501]
[1729872302098,2.9091,171.96,171.86,9.6501]
[1729872302602,2.9091,171.95,171.91,2.9096]
[1729872302799,5.92,171.98,171.86,9.6501]
[1729872302999,42.26228129,171.98,171.89,2.91]
[1729872303200,42.26228129,171.98,171.86,9.6501]
[1729872303400,5.92,171.98,171.86,9.6501]
[1729872303601,42.26228129,171.98,171.86,9.6501]
[1729872303801,42.26228129,171.98,171.44,29.1766]
[1729872303802,36.34228129,171.95,171.81,36.34228129]
[1729872304011,36.34228129,171.92,171.84,2.9108]
[1729872304201,5.92,171.91,171.8,5.92]
[1729872305010,2.9105,171.87,171.8,5.92]
[1729872305601,2.9105,171.87,171.84,2.9108]
[1729872305798,2.9105,171.87,171.8,5.92]
[1729872306002,2.9103,171.88,171.8,5.92]
[1729872306300,36.34228129,171.95,171.81,36.34228129]
[1729872306496,2.9098,171.91,171.81,36.34228129]
[1729872306696,2.9098,171.91,171.8,5.92]
[1729872306697,5.92,171.94,171.9,2.9099]
[1729872307003,2.9093,171.94,171.86,36.34228129]
[1729872307208,2.9093,171.94,171.9,2.9098]
[1729872307398,5.92,171.98,171.86,36.34228129]
[1729872307604,2.9088,171.97,171.89,36.34228129]
[1729872307806,5.92,171.99,171.92,2.9095]
[1729872308005,5.92,171.99,171.85,9.6595]
[1729872308503,36.34228129,171.97,171.85,9.6595]
[1729872308907,2.9099,171.91,171.87,2.9103]
[1729872309110,36.34228129,171.97,171.85,3.7395]
[1729872309614,2.9095,171.93,171.89,2.91]
[1729872309813,36.34228129,171.97,171.85,3.7395]
[1729872310017,2.909,171.96,171.92,2.9094]
[1729872310429,1.2939,172.0,171.89,42.36228129]
[1729872310715,1.2598,172.04,171.92,36.34228129]
[1729872311018,99.18228129,172.06,172.01,2.9079]
[1729872311019,2.9073,172.06,172.01,2.9079]
[1729872311309,1.2004,172.08,172.01,2.9079]
[1729872311509,2.4728,172.13,172.0,36.34228129]
[1729872311709,6.02,172.12,172.0,36.34228129]
[1729872311913,36.34228129,172.11,171.98,36.34228129]
[1729872312116,2.9071,172.07,171.99,2.9082]
[1729872312307,36.34228129,172.11,171.97,6.02]
[1729872312505,36.34228129,172.11,171.98,36.34228129]
[1729872312704,2.907,172.08,172.03,2.9076]
[1729872312917,36.34228129,172.11,171.98,36.34228129]
[1729872313104,36.34228129,172.11,171.97,6.02]
[1729872313105,36.34228129,172.08,171.97,6.02]
[1729872313812,6.02,172.12,171.97,42.36228129]
[1729872313813,36.34228129,172.11,171.97,42.36228129]
[1729872314110,2.4728,172.13,172.0,36.34228129]
[1729872315214,2.4728,172.13,171.98,36.34228129]
[1729872315412,2.4728,172.13,172.0,36.34228129]
[1729872315610,2.9067,172.1,172.04,2.9075]
[1729872315922,2.4728,172.13,172.0,36.34228129]
[1729872316220,43.56268129,172.14,172.0,36.34228129]
[1729872316221,2.9065,172.11,172.06,2.9071]
[1729872316519,6.02,172.14,172.06,2.9071]
[1729872316820,42.36228129,172.14,172.03,2.9076]
[1729872317212,36.34228129,172.11,172.0,6.02]
[1729872317511,36.34228129,172.08,171.97,6.02]
[1729872317920,2.9077,172.04,171.99,2.9083]
[1729872318412,22.34284123,172.08,171.99,2.9083]
[1729872318710,2.9077,172.03,171.99,2.9083]
[1729872319214,22.34284123,172.08,171.97,6.02]
[1729872319420,2.9079,172.02,171.98,2.9086]
[1729872319622,22.34284123,172.08,171.97,6.02]
[1729872319823,1.1909,172.07,171.97,6.02]
[1729872320129,1.1909,172.07,171.97,8.9287]
[1729872320532,2.908,172.02,171.98,2.9086]
[1729872320828,22.34284123,172.05,171.94,2.4679]
[1729872321016,1.1909,172.07,171.94,2.4679]
[1729872321017,22.34284123,172.02,171.94,8.4879]
[1729872321212,22.34284123,172.02,171.93,2.9094]
[1729872321422,2.9093,171.94,171.88,6.02]
[1729872321629,22.34284123,171.99,171.88,6.02]
[1729872321630,28.36284123,171.99,171.88,8.9301]
[1729872321923,2.9097,171.92,171.88,6.02]
[1729872322313,22.34284123,171.96,171.88,6.02]
[1729872322620,22.34284123,171.96,171.86,2.5294]
[1729872322921,22.34284123,171.96,171.87,2.9104]
[1729872323122,22.34284123,171.96,171.86,2.5294]
[1729872323521,1.2065,171.98,171.89,2.9099]
[1729872323713,2.909,171.96,171.89,2.9099]
[1729872323914,1.2065,171.98,171.86,2.5294]
[1729872324114,1.2065,171.98,171.88,2.9103]
[1729872324325,1.2065,171.98,171.86,2.5294]
[1729872324326,2.9097,171.92,171.86,2.5294]
[1729872324623,36.31226518,171.96,171.82,36.31226518]
[1729872324823,36.31226518,171.96,171.76,1.3]
[1729872324824,2.9102,171.89,171.8,6.02]
[1729872325019,6.02,171.93,171.8,6.02]
[1729872325222,6.02,171.93,171.86,2.9105]
[1729872325524,6.02,171.93,171.79,36.31226518]
[1729872325525,36.31226518,171.91,171.79,36.31226518]
[1729872325716,6.02,171.93,171.8,6.02]
[1729872326423,6.02,171.93,171.82,36.31226518]
[1729872326821,2.91,171.9,171.85,2.9106]
[1729872327025,2.91,171.9,171.8,42.33226518]
[1729872327224,6.02,171.93,171.8,42.33226518]
[1729872327424,2.9104,171.88,171.84,2.9108]
[1729872327630,6.02,171.93,171.8,42.33226518]
[1729872327926,6.02,171.93,171.77,2.5103]
[1729872327927,36.31226518,171.88,171.77,2.5103]
[1729872328122,36.31226518,171.88,171.78,6.02]
[1729872328123,2.9108,171.85,171.78,6.02]
[1729872328323,36.31226518,171.88,171.78,6.02]
[1729872328722,42.33226518,171.88,171.77,2.5103]
[1729872328929,42.33226518,171.88,171.76,1.3]
[1729872328930,36.31226518,171.86,171.76,1.3]
[1729872329121,2.9116,171.8,171.76,2.9122]
[1729872329320,1.223,171.87,171.7,2.4821]
[1729872329321,42.33226518,171.83,171.7,2.4821]
[1729872330225,6.02,171.83,171.71,36.31226518]
[1729872331326,6.02,171.83,171.75,2.9123]
[1729872331724,6.02,171.83,171.72,6.02]
[1729872332527,6.02,171.83,171.55,17.44]
[1729872332528,36.31226518,171.8,171.64,6.02]
[1729872332720,36.31226518,171.77,171.64,8.4629]
[1729872333427,2.9123,171.76,171.69,2.9134]
[1729872333729,6.02,171.78,171.66,36.31226518]
[1729872333929,2.9122,171.77,171.73,2.9127]
[1729872334635,6.02,171.78,171.69,6.04]
[1729872335439,1.0,171.82,171.71,36.31226518]
[1729872335636,1.223,171.87,171.77,2.9121]
[1729872335637,6.04,171.84,171.77,2.9121]
[1729872336130,2.9111,171.83,171.78,2.9118]
[1729872336333,42.35226518,171.85,171.74,6.04]
[1729872336638,2.9114,171.82,171.78,2.9119]
[1729872336833,1.223,171.87,171.74,6.04]
[1729872337031,1.223,171.87,171.75,2.3993]
[1729872337032,7.263,171.87,171.75,2.3993]
[1729872337229,2.9107,171.86,171.81,2.9113]
[1729872337829,2.5147,171.91,171.79,6.04]
[1729872337830,6.04,171.9,171.79,6.04]
[1729872338031,6.04,171.9,171.79,42.35226518]
[1729872338231,36.31226518,171.94,171.81,36.31226518]
[1729872338437,1.2933,171.96,171.81,36.31226518]
[1729872338438,37.60556518,171.96,171.81,36.31226518]
[1729872338831,37.60556518,171.96,171.84,36.31226518]
[1729872339140,37.60556518,171.96,171.85,6.24]
[1729872339540,36.31226518,171.99,171.87,36.31226518]
[1729872339731,36.31226518,171.96,171.86,1.2819]
[1729872339934,36.31226518,171.96,171.85,6.24]
[1729872340130,36.31226518,171.9,171.79,6.24]
[1729872340334,36.31226518,171.9,171.85,2.9106]
[1729872340335,39.22226518,171.9,171.85,2.9106]
[1729872340535,36.31226518,171.93,171.8,6.24]
[1729872340734,36.31226518,171.96,171.8,6.24]
[1729872341134,36.31226518,171.91,171.8,6.24]
[1729872341532,1.2838,172.0,171.84,36.31226518]
[1729872341837,36.31226518,171.98,171.85,6.24]
[1729872342036,7.5238,172.0,171.88,2.9101]
[1729872342037,2.9096,171.92,171.88,2.9101]
[1729872342228,36.31226518,171.93,171.85,6.24]
[1729872342727,36.31226518,171.87,171.77,2.5355]
[1729872342926,36.31226518,171.87,171.77,1.2427]
[1729872343136,6.24,171.89,171.77,1.2427]
[1729872343334,36.31226518,171.9,171.77,1.2427]
[1729872343840,2.9102,171.89,171.84,2.9109]
[1729872344140,6.24,171.93,171.82,6.24]
[1729872344639,36.31226518,171.91,171.82,6.24]
[1729872345236,2.9107,171.86,171.82,6.24]
[1729872345637,2.5676,171.9,171.82,6.24]
[1729872345835,36.31226518,171.96,171.82,6.24]
[1729872345836,6.24,171.94,171.82,6.24]
[1729872346529,6.24,171.94,171.84,22.3483269]
[1729872346929,2.9095,171.93,171.89,2.91]
[1729872347134,6.24,171.94,171.89,2.91]
[1729872347536,6.24,171.94,171.84,22.3483269]
[1729872347728,22.3483269,171.98,171.83,1.1799]
[1729872347934,71.6743,172.0,171.87,22.3483269]
[1729872348134,2.9088,171.97,171.91,2.9097]
[1729872348338,8.8143,172.0,171.88,7.438]
[1729872348542,8.8143,172.0,171.88,1.198]
[1729872348739,2.9092,171.95,171.9,2.9098]
[1729872348936,22.3483269,171.98,171.88,7.438]
[1729872349336,2.9092,171.95,171.9,2.9099]
[1729872349944,8.8143,172.0,171.88,7.438]
[1729872350938,2.5743,172.0,171.9,22.3483269]
[1729872351341,2.9084,171.99,171.9,22.3483269]
[1729872351544,2.5743,172.0,171.9,22.3483269]
[1729872351743,2.9089,171.96,171.9,22.3483269]
[1729872351941,22.3483269,171.92,171.81,1.2319]
[1729872352143,28.5883269,171.92,171.81,1.2319]
[1729872352340,6.24,171.92,171.81,1.2319]
[1729872352538,7.5206,171.96,171.82,28.5883269]
[1729872352840,22.3483269,171.95,171.82,31.0411269]
[1729872353153,22.3483269,171.92,171.82,8.6928]
[1729872353338,2.9103,171.88,171.83,2.9111]
[1729872355349,6.24,171.91,171.82,6.24]
[1729872355549,6.24,171.91,171.76,22.3483269]
[1729872355550,8.7471,171.91,171.76,24.7781269]
[1729872355747,2.9108,171.86,171.78,2.9118]
[1729872356048,22.3483269,171.87,171.77,6.24]
[1729872356444,22.3483269,171.87,171.77,9.152]
[1729872356649,22.3483269,171.89,171.77,6.24]
[1729872356852,28.5883269,171.89,171.8,2.9116]
[1729872357747,2.9109,171.84,171.8,2.9116]
[1729872358250,2.9109,171.84,171.77,6.24]
[1729872358550,2.9112,171.83,171.79,2.9118]
[1729872359445,28.5883269,171.89,171.73,22.3483269]
[1729872359446,2.9117,171.8,171.73,22.3483269]
[1729872359642,22.3483269,171.87,171.73,22.3483269]
[1729872360060,2.9111,171.83,171.78,2.9119]
[1729872360250,22.3483269,171.87,171.78,2.9119]
[1729872360554,2.9112,171.83,171.78,2.9119]
[1729872360852,6.24,171.89,171.77,6.24]
[1729872361240,6.24,171.89,171.8,2.9115]
[1729872361439,6.24,171.89,171.77,6.24]
[1729872361645,2.9108,171.86,171.78,1.2419]
[1729872361943,6.24,171.89,171.78,1.2419]
[1729872362143,6.24,171.89,171.77,6.24]
[1729872362345,22.3483269,171.86,171.77,2.9121]
[1729872362654,22.3483269,171.83,171.73,1.2419]
[1729872362846,22.3483269,171.83,171.72,8.6611]
[1729872363150,2.9119,171.79,171.72,8.6611]
[1729872363550,2.9119,171.79,171.74,2.9126]
[1729872363842,2.912,171.78,171.74,2.9126]
[1729872365146,2.9121,171.77,171.74,2.9126]
[1729872365547,22.3483269,171.83,171.73,2.9128]
[1729872365855,2.9123,171.77,171.73,2.9128]
[1729872366242,2.5266,171.82,171.72,6.24]
[1729872366442,22.3483269,171.81,171.69,1.2419]
[1729872366849,2.9129,171.73,171.69,9.1534]
[1729872367151,22.3483269,171.75,171.64,1.1849]
[1729872367350,6.24,171.74,171.64,2.9142]
[1729872367545,7.5411,171.74,171.63,2.5216]
[1729872367956,7.5411,171.74,171.66,2.914]
[1729872368153,7.5411,171.74,171.63,2.5216]
[1729872369053,6.26,171.76,171.63,2.5216]
[1729872369249,2.913,171.72,171.68,2.9136]
[1729872369650,6.26,171.76,171.68,2.9136]
[1729872369845,2.9129,171.73,171.68,2.9136]
[1729872370458,2.5266,171.82,171.68,6.26]
[1729872370760,2.5266,171.82,171.69,22.3483269]
[1729872370948,2.5266,171.82,171.69,23.5960269]